Cogmind - Beta 12 @@@ ROGUE MODE // 2024.01.26 @ 08:31:42 Player: VikingFarmer Result: Destroyed by Y-45 Defender with Beam Rifle Performance ------------- Evolutions (1) 500 Regions Visited (4) 800 Robots Destroyed (27) 135 Value Destroyed (635) 635 Prototype IDs (0) 0 Alien Tech Used (0) 0 Bonus (0) 0 TOTAL SCORE: 2070 Bonus ------- None Cogmind --------- Core Integrity 0/400 Matter 295/300 Energy 99/100 System Corruption 0% Temperature Cool (9) Movement Core (100) Ox1 Location -9/Storage Parts ------- > --- POWER (1) -------- (None) > --- PROPULSION (2) --- (None) > --- UTILITY (3) ------ Small Storage Unit Targeting Computer > --- WEAPON (3) ------- (None) > --- INVENTORY (8) ---- Heavy Ion Engine Structural Scanner Hardened Light Armor Plating Peak State ------------ > --- POWER ------------ Light Nuclear Core > --- PROPULSION ------- Aluminum Leg Aluminum Leg > --- UTILITY ---------- Small Storage Unit Terrain Scan Processor Core Shielding > --- WEAPON ----------- Light Assault Rifle EMP Blaster Datajack > --- INVENTORY -------- Light Ion Engine Structural Scanner Signal Interpreter [Rating: 13] Favorites ----------- Power Ion Engine Engine Ion Engine Power Core Light Nuclear Core Propulsion Aluminum Leg Treads Light Treads Leg Aluminum Leg Flight Unit Flight Unit Utility Core Shielding Device Drone Bay Storage Small Storage Unit Processor Terrain Scan Processor Protection Core Shielding Weapon Light Assault Rifle Energy Gun EM Pulse Gun Ballistic Gun Light Assault Rifle Launcher EMP Blaster Special Melee Weapon Datajack Build | -11 -10 -10 -9 -9 ------- Run | Jun Mat Min Mat Sto Slots Evolved 2 | . . . 2 . Power . | . . . . . Propulsion . | . . . . . Utility 1 | . . . 1 . Weapon 1 | . . . 1 . Parts Attached 33 | 6 6 8 4 9 Power 6 | 1 1 2 1 1 Engine 4 | 1 1 . 1 1 Core 2 | . . 2 . . Reactor . | . . . . . Propulsion 9 | 2 2 4 . 1 Treads 2 | 2 . . . . Leg 6 | . 2 3 . 1 Wheel . | . . . . . Hover . | . . . . . Flight 1 | . . 1 . . Utility 8 | 1 1 1 1 4 Device 1 | . . . . 1 Storage 2 | 1 . . 1 . Processor 3 | . . 1 . 2 Hackware . | . . . . . Protection 2 | . 1 . . 1 Artifact . | . . . . . Weapon 10 | 2 2 1 2 3 Energy Gun 6 | 2 1 . . 3 Energy Cannon . | . . . . . Ballistic Gun 2 | . 1 1 . . Ballistic Cannon . | . . . . . Launcher 1 | . . . 1 . Special Weapon . | . . . . . Impact Weapon . | . . . . . Slashing Weapon . | . . . . . Piercing Weapon . | . . . . . Special Melee Weapon 1 | . . . 1 . Unidentified Prototypes . | . . . . . Parts Lost 18 | . 3 1 8 6 Power 4 | . 1 . 2 1 Propulsion 4 | . 1 . 2 1 Utility 2 | . . . 1 1 Weapon 8 | . 1 1 3 3 Highest Loss Streak 8 | . 2 1 8 4 To Critical Strikes . | . . . . . Average Slot Usage (%) 76 | . 72 94 90 52 Engine 6 | . 10 2 . 9 Core 4 | . . 11 8 . Treads 7 | . 20 . . . Leg 13 | . 6 27 19 3 Storage 3 | . . . 11 11 Processor 8 | . . 11 11 20 Protection 9 | . 11 14 10 . Energy Gun 5 | . 10 . . 8 Ballistic Gun 14 | . 12 25 16 . Naked Turns . | . . . . . Heaviest Build 17 | 9 9 9 17 16 Greatest Support 40 | 40 40 20 20 13 Greatest Overweight (x) 5 | . . . 2 5 Average Overweight (x) . | . . . . 1 Largest Inventory Capacity 8 | 8 5 5 8 8 Average Capacity 5 | 5 5 5 7 8 Most Carried 5 | 5 4 5 4 5 Average Carried 2 | 1 2 3 2 2 Final Capacity 8 | 5 5 5 8 8 Final Carried 5 | 1 3 5 3 3 Class Distribution -------------------- 69% | Mutant 30% | Scavenger-Mutant Dominant Class ---------------- Mutant | -10/Materials Scavenger-Mutant | -10/Mines Scavenger-Mutant | -9/Materials Mutant | -9/Storage Resources | -11 -10 -10 -9 -9 ----------- Run | Jun Mat Min Mat Sto Matter Collected 559 | 190 151 138 . 80 Remotely . | . . . . . Salvage Created 964 | . 348 242 81 293 Parts 45 | . 13 20 1 11 Haulers Intercepted . | . . . . . Recyclers Shooed 2 | . . . . 2 Parts Field Recycled . | . . . . . Retrieved Matter . | . . . . . Parts Self-Destructed . | . . . . . Prevented . | . . . . . Kills | -11 -10 -10 -9 -9 ------- Run | Jun Mat Min Mat Sto Combat Hostiles Destroyed 20 | . 8 7 1 4 Guns 20 | . 8 7 1 4 Classes Destroyed 6 | . 5 . . 1 Worker 2 | . 1 . . 1 Builder 2 | . 1 1 . . Recycler 3 | . 1 . 1 1 Swarmer 6 | . 3 3 . . Grunt 13 | . 5 4 1 3 Duelist 1 | . . . . 1 Best Kill Streak 6 | . 6 3 2 3 Combat Bots Only 3 | . 3 3 1 2 Max Kills in Single Turn 1 | . 1 1 1 1 Gunslinging . | . . . . . Exploded . | . . . . . Melee . | . . . . . Uniques/NPCs Destroyed . | . . . . . Combat | -11 -10 -10 -9 -9 -------- Run | Jun Mat Min Mat Sto Damage Taken 2185 | . 524 437 579 645 Core 593 | . 70 117 197 209 Absorbed by Shields . | . . . . . Redirected to Shielding 50 | . 13 24 13 . Core Remaining (%) 62 | 100 . 25 . . Volleys Fired 116 | . 41 36 5 34 Largest 2 | . 2 2 2 2 Hottest 105 | . 60 40 53 105 Shots Fired 162 | . 55 53 6 48 Gun 161 | . 55 53 5 48 Cannon . | . . . . . Launcher 1 | . . . 1 . Special . | . . . . . Kinetic 99 | . 41 53 5 . Thermal 48 | . . . . 48 Explosive . | . . . . . Electromagnetic 15 | . 14 . 1 . Robot Hit Streak 10 | . 10 9 5 8 Robot Miss Streak 5 | . 5 3 1 2 Penetration Max . | . . . . . Secondary Targets 1 | . 1 . . . Max Gunslinging Chain 1 | . 1 . . . Shots Hit Robots 103 | . 30 33 5 35 Core Hits 55 | . 19 17 4 15 Critical Kills 1 | . . 1 . . Critical Parts Destroyed . | . . . . . Critical Strikes 2 | . 1 1 . . Destroy 1 | . . 1 . . Corrupt 1 | . 1 . . . Melee Attacks . | . . . . . Impact . | . . . . . Slashing . | . . . . . Piercing . | . . . . . Sneak Attacks . | . . . . . Combat Hostiles . | . . . . . Follow-up Attacks . | . . . . . Damage Inflicted 1322 | . 342 267 298 415 Guns 994 | . 281 267 31 415 Cannons . | . . . . . Explosions 328 | . 61 . 267 . Melee . | . . . . . Ramming . | . . . . . Kinetic 483 | . 185 267 31 . Thermal 720 | . 61 . 244 415 Explosive . | . . . . . Electromagnetic 119 | . 96 . 23 . Impact . | . . . . . Slashing . | . . . . . Piercing . | . . . . . Highest Corruption . | . . . . . Average Corruption . | . . . . . Corruption Purged . | . . . . . Corruption Blocked . | . . . . . Overload Shots . | . . . . . Overflow Damage 122 | . . . 122 . Projectiles . | . . . . . Explosions 122 | . . . 122 . Melee . | . . . . . Knockbacks . | . . . . . Impact . | . . . . . Kinetic . | . . . . . Secondary . | . . . . . Self-Inflicted Damage 239 | . 23 . 216 . Shots 4 | . 1 . 3 . Rammed 1 | . . . . 1 Targets Rammed 1 | . . . . 1 Kicked . | . . . . . Crushed . | . . . . . Highest Temperature 134 | . 74 34 26 134 Average Temperature 32 | . 25 15 24 48 Received Heat Transfer 765 | . 192 177 126 270 Siege Activations . | . . . . . Robots Corrupted . | . . . . . Combat Hostiles . | . . . . . Parts Fried . | . . . . . Impact Corruptions . | . . . . . Robots Melted . | . . . . . Combat Hostiles . | . . . . . Parts Melted 1 | . . . . 1 Heat Transferred 1155 | . 100 . 150 905 Parts Sabotaged . | . . . . . Parts Stolen . | . . . . . Parts Stripped . | . . . . . Power Chain Reactions 1 | . 1 . . . Missiles Intercepted . | . . . . . Alert | -11 -10 -10 -9 -9 ------- Run | Jun Mat Min Mat Sto Peak Influence 201 | . 140 201 113 178 Initial 36 | . . 36 . 32 Average 79 | . 67 136 24 82 Maximum Alert Level 1 | . . 1 . . Low Security (%) 92 | 100 100 72 100 100 Level 1 7 | . . 27 . . Level 2 . | . . . . . Level 3 . | . . . . . Level 4 . | . . . . . Level 5 . | . . . . . High Security . | . . . . . Max Security . | . . . . . Squads Dispatched 6 | . 3 . 1 2 Investigation 1 | . 1 . . . Extermination . | . . . . . Reinforcement 5 | . 2 . 1 2 Assault . | . . . . . Garrison . | . . . . . Intercept . | . . . . . Searches Triggered . | . . . . . Construction Impeded . | . . . . . Haulers Reinforced . | . . . . . Active Scanning Responses . | . . . . . Cargo Convoy Interrupts . | . . . . . Stealth | -11 -10 -10 -9 -9 --------- Run | Jun Mat Min Mat Sto Distress Signals 3 | . 1 . . 2 Communications Jammed . | . . . . . Distress Signals . | . . . . . Times Spotted 38 | . 14 7 7 10 Peak Tracking Total 5 | . 5 3 4 4 Tactical Retreats 2 | . . . . 2 Traps | -11 -10 -10 -9 -9 ------- Run | Jun Mat Min Mat Sto Traps Triggered 1 | . 1 . . . Indirectly . | . . . . . Trap Hack Attempts . | . . . . . Triggered . | . . . . . Disarmed . | . . . . . Reprogrammed . | . . . . . Reused . | . . . . . Traps Extracted . | . . . . . Installed . | . . . . . Triggered . | . . . . . Machines | -11 -10 -10 -9 -9 ---------- Run | Jun Mat Min Mat Sto Machines Disabled 3 | . . . 3 . Max in Single Turn 3 | . . . 3 . Machines Repaired . | . . . . . Machines Sabotaged . | . . . . . Overloaded Fab Kills . | . . . . . Hacking | -11 -10 -10 -9 -9 --------- Run | Jun Mat Min Mat Sto Machines Accessed 5 | . 3 . 1 1 Terminals 4 | . 2 . 1 1 Fabricators . | . . . . . Repair Stations . | . . . . . Recycling Units 1 | . 1 . . . Scanalyzers . | . . . . . Garrison Access . | . . . . . Total Hacks 16 | . 13 . 1 2 Successful 13 | . 11 . 1 1 Failed 3 | . 2 . . 1 Catastrophic . | . . . . . Database Lockouts . | . . . . . Manual . | . . . . . Terminals 7 | . 4 . 1 2 Fabricators . | . . . . . Repair Stations . | . . . . . Recycling Units 9 | . 9 . . . Scanalyzers . | . . . . . Garrison Access . | . . . . . Terminal Hacks 6 | . 4 . 1 1 Record 4 | . 3 . 1 . Open Door 1 | . . . . 1 Dispatch Records 1 | . 1 . . . Fabricator Hacks . | . . . . . Repair Station Hacks . | . . . . . Recycling Unit Hacks 7 | . 7 . . . Recycle Component 2 | . 2 . . . Process 2 | . 2 . . . Report Inventory 1 | . 1 . . . Retrieve Components 2 | . 2 . . . Scanalyzer . | . . . . . Garrison Access Hacks . | . . . . . Unauthorized Hacks . | . . . . . Terminals . | . . . . . Fabricators . | . . . . . Repair Stations . | . . . . . Recycling Units . | . . . . . Scanalyzers . | . . . . . Garrison Access . | . . . . . Data Cores Recovered . | . . . . . Used . | . . . . . Hacking Detections 2 | . 1 . . 1 Full Trace Events . | . . . . . Feedback Events . | . . . . . Feedback Blocked . | . . . . . Robot Schematics Acquired . | . . . . . Robots Built . | . . . . . Authchips . | . . . . . Time . | . . . . . Total Robot Build Rating . | . . . . . Part Schematics Acquired . | . . . . . Parts Built . | . . . . . Authchips . | . . . . . Time . | . . . . . Total Part Build Rating . | . . . . . Parts Repaired . | . . . . . Time . | . . . . . Parts Recycled 2 | . 2 . . . Recycled Matter 157 | . 157 . . . Retrieved Matter . | . . . . . Retrieved Components 3 | . 3 . . . Parts Scanalyzed . | . . . . . Part Schematics Acquired . | . . . . . Parts Damaged . | . . . . . Bothacking | -11 -10 -10 -9 -9 ------------ Run | Jun Mat Min Mat Sto Used RIF Installer . | . . . . . Robots Hacked . | . . . . . Non-combat . | . . . . . Combat . | . . . . . Robot Hacks Applied . | . . . . . Relay Couplers Released . | . . . . . Fabnet Peak Effective % . | . . . . . Robots Rewired . | . . . . . Allies Hacked . | . . . . . Hacks Repelled . | . . . . . Allies | -11 -10 -10 -9 -9 -------- Run | Jun Mat Min Mat Sto Total Allies . | . . . . . Largest Group . | . . . . . Highest-Rated Group . | . . . . . Highest-Rated Ally . | . . . . . Total Orders . | . . . . . Ally Attacks . | . . . . . Total Damage . | . . . . . Kills . | . . . . . Allies Corrupted . | . . . . . Allies Melted . | . . . . . Intel | -11 -10 -10 -9 -9 ------- Run | Jun Mat Min Mat Sto Robot Analysis Total . | . . . . . Derelict Logs Recovered 1 | . . 1 . . Drone Launches 2 | . . . . 2 Drone Recoveries 1 | . . . . 1 Exploration | -11 -10 -10 -9 -9 ------------- Run | Jun Mat Min Mat Sto Turns Passed 1707 | 133 604 459 162 349 Spaces Moved 1016 | 99 343 300 122 152 Core 174 | 33 . . 17 124 Treads 293 | 66 227 . . . Legs 549 | . 116 300 105 28 Wheels . | . . . . . Hover . | . . . . . Flight . | . . . . . Fastest Speed 50 | 50 120 120 100 100 Average Speed 135 | 123 146 120 118 161 Slowest Speed 300 | 160 160 120 190 300 Overloaded Moves . | . . . . . Propulsion Burnouts . | . . . . . Robots Hopped . | . . . . . Cave-ins Triggered . | . . . . . Exploration Rate (%) 23 | 4 34 44 10 24 Regions Visited 4 Branch Regions 2 Pre-discovered Areas . | . . . . . Known Exits Taken 1 | . . 1 . . Unknown Exits Taken 3 | 1 1 . 1 . Scrap Searched 1 | . . 1 . . Spaces Dug . | . . . . . Terrain Destroyed 45 | . 2 . 43 . Melee . | . . . . . Projectile . | . . . . . AOE 45 | . 2 . 43 . Terrain Rammed . | . . . . . Walls Destroyed . | . . . . . Machines Disabled . | . . . . . Actions | -11 -10 -10 -9 -9 --------- Run | Jun Mat Min Mat Sto Total 1212 | 111 399 359 135 208 Wait . | . . . . . Move 1012 | 98 342 299 121 152 Hop . | . . . . . Pick Up 35 | 6 8 10 3 8 Fast Attach . | . . . . . Attach 32 | 6 6 7 4 9 Detach 4 | 1 2 . . 1 Swap 1 | . . 1 . . Drop 10 | . . 6 2 2 Fire 116 | . 41 36 5 34 Melee . | . . . . . Ram 1 | . . . . 1 Kick . | . . . . . Crush . | . . . . . Escape Stasis . | . . . . . Rewire 1 | . . . . 1 Trap . | . . . . . Miscellaneous . | . . . . . Route ------- -11/Junkyard -10/Materials -10/Mines (discovered 2 exits: *Mat / [*Exi]) -9/Materials (discovered 2 exits: [*Min] / *Sto) -9/Storage History --------- Turn | Location | Event 12 | -11/Junkyard | Discovered new exit (range 15) 134 | -11/Junkyard | Entered Materials 309 | -10/Materials | Build established: Mutant 681 | -10/Materials | Discovered new exit (range 14) 738 | -10/Materials | Entered Mines 756 | -10/Mines | Met a Derelict bent on vengeance 781 | -10/Mines | Core integrity fell below 50% 862 | -10/Mines | Identified exit to Materials 916 | -10/Mines | Deemed a non-threat by the Exiles lab entrance 917 | -10/Mines | Discovered new exit (range 5) 1094 | -10/Mines | Build established: Scavenger-Mutant 1197 | -10/Mines | Entered Materials 1197 | -9/Materials | Evolved 2 slots: Utility x1, Weapon x1 1199 | -9/Materials | Discovered new exit (range 15) 1277 | -9/Materials | Discovered new exit (range 15) 1359 | -9/Materials | Entered Storage 1380 | -9/Storage | Lost 8 parts (2p2n1u3w) 1522 | -9/Storage | Core integrity fell below 50% 1609 | -9/Storage | Build established: Mutant 1651 | -9/Storage | Core integrity fell below 20% 1700 | -9/Storage | Lost 4 parts (1p1n2w) 1708 | -9/Storage | Destroyed by Y-45 Defender with Beam Rifle Last Messages --------------- 01648_ G-34 Mercenary destroyed. 01650_ Ion Engine destroyed. 01669_ Sml. Laser destroyed. 01677_ O-16 Technician sends out distress signal. 01677_ O-16 Technician: "IFF HANDSHAKE FAILED. SECURING TERMINAL." 01687_ ALERT: Hostiles spotted, dispatching reinforcements to Terminal S011. 01687_ Connecting with Door Terminal... >>Open(Door) Sealed Heavy Doors opened. 01690_ Acquired Drone Bay. 01691_ Discarded Signal Interpreter. 01694_ Drone released from Drone Bay. 01694_ Drone suffers critical hit (Burn). 01694_ Drone destroyed. 01695_ Drone released from Drone Bay. 01697_ Drone retrieved by Drone Bay. 01705_ Critical hit (Burn: +37). 01705_ Drone Bay destroyed. Map ----- +----------------------------------------------------+ | ?????????????????????????????????????????????????? | | ?????????????????????????????????????????????????? | | ?????????????????????????????????????????????????? | | ?????????????????????????????????????????????????? | | ?????????????????????????????????????????????????? | | ?????????????????????????????????????????????????? | | ?????????????????????????????????????????????????? | | ?????????????????????????????????????????????????? | | ?????????????????????????????????????????????????? | | ?????????????????????????????????????????????????? | | ??????????????????????? ???????????????????????? | | ??????????????????????# ???????????????????????? | | ??????????????????????# ???????????????????????? | | ??????????????????????# #??????????????????????? | | ??????????????????????# #??????????????????????? | | ??????????????????????#Y #??????????????????????? | | ??????????????????????# #??????????????????????? | | ??????????????????????# +??????????????????????? | | ??????????????????????# a #??????????????????????? | | ??????????????????????# #??????????????????????? | | ??????????????????????# +??????????????????????? | | ??????????????????????# #??????????????????????? | | ??????????????????????# #??????????????????????? | | ??????????????????????# #??????????????????????? | | ??????????????????????# #??????????????????????? | | ??????????????????????# @#??????????????????????? | | ????????????????????### #?########?????????????? | | ???????????? ######T# #? ??????????????? | | ???????????# #!!! # # # """ ??????????????? | | ???????????# # + # """ T?????????????? | | ???????????# #!!!!# #%Y + """ "?????????????? | | ???????????# ######## # #?????????????? | | ???????????+ #??????# # """ #?????????????? | | ???????????# #??????# u#?! """ #????????????? | | ???????????# #??????# #? """ ???????????????? | | ???????????# ######## #?? ???????????????? | | ???????????# #! #Y #??######??????????????? | | ???????????# # # #??????????????????????? | | ???????????# # # #???#####??????????????? | | ???????????# # % # #???#* *#??????????????? | | ???????????# # % # #???#* *#??????????????? | | ???????????# !# * # #???#* *#??????????????? | | ???????????# %/% %%/# #???# *#??????????????? | | ????######## # # #??##" "#??????????????? | | # % # #??#T #??????????????? | | ####+### ##?## #??????????????? | | #??#%## ####+######???????????? | | ##############??# ## #???????????? | | ??????????????????# ## #???????????? | | ??????????????????# #???????????? | +----------------------------------------------------+ Best States ------------- Heat Dissipation 28 Energy Generation 14 Energy Capacity 250 Matter Stores 300 Matter Capacity 300 Sight Range 16 Terrain Scan Density 85 Armor Coverage 150 Core Shielding 20 Evasion (%) 55 Targeting Accuracy 5 Recoil Reduction 2 Item Schematics ----------------- None Robot Schematics ------------------ None Fabricated ------------ Nothing Alien Tech Used ----------------- None Achievements -------------- Let's See Who's Tougher Challenges ------------ None Game ------ Seed UtilityPulseNetwork Manual? 0 Play Time 00:35:04 Cumulative 11.4 hours Start 2024.01.26 @ 07:58:16 End 2024.01.26 @ 08:31:42 Sessions 1 Manual Loads 0 Difficulty Rogue Special Mode None Game No. 16 Rogue 16 Adventurer 0 Explorer 0 Win Type - Total 0 Types 0/0/0/0/0/0/0/0/0 Lore% 8 Gallery% 14 Achievement% 14 Wizard Run 0 Options --------- ASCII 0 Keyboard 0 Movement Mouse Keybinds 0 Fullscreen 1 Font 24/Proggy Map View 64x52 Tactical HUD 1 Map Filters NONE Filters NONE Steam 1 RUN: 0a17ed65-7e95-42e9-8aee-d474a8c41dc2